fUST/lending_fUST_20240828
["ID","MTS","AMOUNT","RATE_DAILY","PERIOD"]
[336398921,1724807443833,-816.38,0.00011506,2]
[336398922,1724807443843,-500.0,0.00011506,2]
[336398923,1724807443854,-290.93984343,0.00011506,2]
[336398924,1724807443864,-500.0,0.00011506,2]
[336398925,1724807443874,-500.0,0.00011506,2]
[336398926,1724807443885,-8759.68,0.00011506,2]
[336398927,1724807443895,-789.67,0.00011506,2]
[336398928,1724807443905,-500.0,0.00011506,2]
[336398929,1724807443915,-500.0,0.00011506,2]
[336398930,1724807443926,-500.0,0.00011506,2]
[336398931,1724807443935,-500.0,0.00011506,2]
[336398932,1724807443945,-633.70898855,0.00011506,2]
[336398933,1724807443954,-500.0,0.00011506,2]
[336398934,1724807443964,-500.0,0.00011506,2]
[336398935,1724807443973,-500.0,0.00011506,2]
[336398936,1724807443983,-1383.68,0.00011506,2]
[336398937,1724807443992,-3302.93,0.00011506,2]
[336398938,1724807444002,-259.96,0.00011506,2]
[336398939,1724807444012,-500.0,0.00011506,2]
[336398940,1724807444022,-500.0,0.00011506,2]
[336398941,1724807444031,-5736.41,0.00011506,2]
[336398942,1724807444041,-500.0,0.00011506,2]
[336398943,1724807444053,-500.0,0.00011506,2]
[336398944,1724807444064,-500.0,0.00011506,2]
[336398945,1724807444074,-4130.79,0.00011506,2]
[336398946,1724807444084,-500.0,0.00011506,2]
[336398947,1724807444094,-218.50278203,0.00011506,2]
[336398948,1724807444104,-500.0,0.00011506,2]
[336398949,1724807444116,-628.4,0.00011506,2]
[336398950,1724807444126,-3015.24,0.00011506,2]
[336398951,1724807444138,-500.0,0.00011506,2]
[336398952,1724807444150,-500.0,0.00011506,2]
[336398953,1724807444161,-500.0,0.00011506,2]
[336398954,1724807444173,-595.45460509,0.00011506,2]
[336398955,1724807444183,-500.0,0.00011506,2]
[336398956,1724807444194,-3316.38,0.00011506,2]
[336398957,1724807444206,-1105.84,0.00011506,2]
[336398958,1724807444216,-500.0,0.00011506,2]
[336398959,1724807444227,-500.0,0.00011506,2]
[336398960,1724807444237,-235.772684,0.00011507,2]
[336398961,1724807444248,-500.0,0.00011521,2]
[336398962,1724807444258,-1000.0,0.00011521,2]
[336398963,1724807444268,-1754.88500439,0.0001168,2]
[336398964,1724807444279,-5063.85930147,0.00011732,5]
[336398965,1724807444289,-1309.99928252,0.00011732,2]
[336398966,1724807444301,-1282.5114005,0.00011732,2]
[336398967,1724807444310,-1067.36684879,0.00011732,2]
[336398968,1724807444319,-308.87016453,0.00011732,2]
[336398969,1724807444329,-500.0,0.00011779,2]
[336398970,1724807444344,-500.0,0.00011779,2]
[336398971,1724807444356,-500.0,0.00011779,2]
[336398972,1724807444367,-500.0,0.0001178,2]
[336398973,1724807444377,-500.0,0.0001178,2]
[336398974,1724807444387,-500.0,0.0001178,2]
[336398975,1724807444398,-500.0,0.0001178,2]
[336398976,1724807444408,-500.0,0.0001178,2]
[336398977,1724807444418,-500.0,0.0001178,2]
[336398978,1724807444427,-500.0,0.0001178,2]
[336398979,1724807444438,-629.41,0.0001178,2]
[336398980,1724807444448,-500.0,0.0001178,2]
[336398981,1724807444458,-500.0,0.0001178,2]
[336398982,1724807444469,-1186.34,0.0001178,2]
[336398983,1724807444478,-500.0,0.0001178,2]
[336398984,1724807444488,-500.0,0.0001178,2]
[336398985,1724807444498,-500.0,0.0001178,2]
[336398986,1724807444507,-500.0,0.0001178,2]
[336398987,1724807444517,-500.0,0.0001178,2]
[336398988,1724807444526,-500.0,0.0001178,2]
[336398989,1724807444535,-500.0,0.0001178,2]
[336398990,1724807444546,-500.0,0.0001178,2]
[336398991,1724807444559,-644.80996809,0.0001178,2]
[336398992,1724807444569,-500.0,0.0001178,2]
[336398993,1724807444581,-918.51,0.0001178,2]
[336398994,1724807444591,-500.0,0.0001178,2]
[336398995,1724807444603,-602.67,0.0001178,2]
[336398996,1724807444612,-4786.88,0.0001178,2]
[336398997,1724807444621,-998.28,0.0001178,2]
[336398998,1724807444631,-2114.92,0.0001178,2]
[336398999,1724807444640,-500.0,0.0001178,2]
[336399000,1724807444649,-500.0,0.0001178,2]
[336399001,1724807444659,-865.96,0.0001178,2]
[336399002,1724807444668,-881.57,0.0001178,2]
[336399003,1724807444678,-1850.83,0.0001178,2]
[336399004,1724807444687,-4445.99,0.0001178,2]
[336399005,1724807444697,-3329.07,0.0001178,2]
[336399006,1724807444706,-10140.89,0.0001178,2]
[336399007,1724807444717,-500.0,0.0001178,2]
[336399008,1724807444726,-560.72,0.0001178,2]
[336399009,1724807444737,-3409.45,0.0001178,2]
[336399010,1724807444747,-500.0,0.0001178,2]
[336399011,1724807444756,-247.28,0.0001178,2]
[336399012,1724807444766,-500.0,0.0001178,2]
[336399013,1724807444776,-500.0,0.0001178,2]
[336399014,1724807444786,-500.0,0.0001178,2]
[336399015,1724807444801,-500.0,0.0001178,2]
[336399016,1724807444811,-332.96,0.0001178,2]
[336399017,1724807444821,-1050.39,0.0001178,2]
[336399018,1724807444830,-500.0,0.0001178,2]
[336399019,1724807445041,-500.0,0.0001178,2]
[336399020,1724807445051,-500.0,0.0001178,2]
[336399021,1724807445061,-587.01,0.0001178,2]
[336399022,1724807445071,-500.0,0.0001178,2]
[336399023,1724807445081,-500.0,0.0001178,2]
[336399024,1724807445091,-500.0,0.0001178,2]
[336399025,1724807445103,-2425.58,0.0001178,2]
[336399026,1724807445113,-500.0,0.0001178,2]
[336399027,1724807445124,-816.38,0.0001178,2]
[336399028,1724807445134,-500.0,0.0001178,2]
[336399029,1724807445145,-572.61,0.0001178,2]
[336399030,1724807445156,-8759.68,0.0001178,2]
[336399031,1724807445166,-789.67,0.0001178,2]
[336399032,1724807445176,-500.0,0.0001178,2]
[336399033,1724807445185,-500.0,0.0001178,2]
[336399034,1724807445194,-500.0,0.0001178,2]
[336399035,1724807445204,-500.0,0.0001178,2]
[336399036,1724807445215,-1383.68,0.0001178,2]
[336399037,1724807445226,-3302.93,0.0001178,2]
[336399038,1724807445235,-500.0,0.0001178,2]
[336399039,1724807445245,-5736.41,0.0001178,2]
[336399040,1724807445255,-508.88,0.0001178,2]
[336399041,1724807445265,-500.0,0.0001178,2]
[336399042,1724807445274,-4130.79,0.0001178,2]
[336399043,1724807445284,-500.0,0.0001178,2]
[336399044,1724807445294,-500.0,0.0001178,2]
[336399045,1724807445304,-3015.24,0.0001178,2]
[336399046,1724807445313,-500.0,0.0001178,2]
[336399047,1724807445322,-500.0,0.0001178,2]
[336399048,1724807445332,-161.57,0.0001178,2]
[336399049,1724807445342,-500.0,0.0001178,2]
[336399050,1724807445353,-3316.38,0.0001178,2]
[336399051,1724807445363,-1105.84,0.0001178,2]
[336399052,1724807445372,-500.0,0.0001178,2]
[336399053,1724807445382,-500.0,0.0001178,2]
[336399054,1724807445392,-6022.8342651,0.00011817,2]
[336399055,1724807445402,-312.10426371,0.00011873,2]
[336399056,1724807445412,-500.0,0.00011873,2]
[336399057,1724807445421,-9437.53512619,0.00011898,2]
[336399058,1724807445431,-500.0,0.00011899,2]
[336399059,1724807445442,-293.87809799,0.00011899,2]
[336399060,1724807445452,-565311.12227505,0.000119,2]
[336399061,1724807445476,-1944.51204392,0.000119,2]
[336399062,1724807445492,-582.41753839,0.000119,2]
[336399063,1724807445504,-1168.57482,0.000119,2]
[336399064,1724807445515,-11741.76025046,0.000119,2]
[336399065,1724807445526,-15044.3016237,0.000119,2]
[336399069,1724807445852,-500.0,0.00010958,2]
[336399070,1724807445863,-56469.66123148,0.000119,2]
[336399072,1724807445873,-420.0,0.00011989,2]
[336399074,1724807445883,-500.0,0.00012054,2]
[336399075,1724807445894,-645.40957348,0.00012054,2]
[336399077,1724807445904,-500.0,0.00012054,2]
[336399078,1724807445914,-188.3448529,0.00012054,2]
[336399079,1724807445925,-500.0,0.00012054,2]
[336399080,1724807445935,-500.0,0.00012054,2]
[336399081,1724807445945,-500.0,0.00012054,2]
[336399082,1724807445954,-629.41,0.00012054,2]
[336399083,1724807445964,-500.0,0.00012054,2]
[336399085,1724807445973,-500.0,0.00012054,2]
[336399087,1724807445982,-1186.34,0.00012054,2]
[336399089,1724807445992,-500.0,0.00012054,2]
[336399091,1724807446002,-500.0,0.00012054,2]
[336399093,1724807446012,-500.0,0.00012054,2]
[336399096,1724807446025,-500.0,0.00012054,2]
[336399098,1724807446036,-159.02,0.00012054,2]
[336399100,1724807446046,-353.77,0.00012054,2]
[336399102,1724807446057,-500.0,0.00012054,2]
[336399104,1724807446067,-350.88,0.00012054,2]
[336399106,1724807446078,-500.0,0.00012054,2]
[336399108,1724807446088,-918.51,0.00012054,2]
[336399110,1724807446098,-500.0,0.00012054,2]
[336399112,1724807446107,-602.67,0.00012054,2]
[336399114,1724807446117,-4786.88,0.00012054,2]
[336399116,1724807446126,-2114.92,0.00012054,2]
[336399118,1724807446136,-463.30527446,0.00012054,2]
[336399120,1724807446146,-865.96,0.00012054,2]
[336399122,1724807446155,-881.57,0.00012054,2]
[336399124,1724807446165,-1850.83,0.00012054,2]
[336399126,1724807446176,-4445.99,0.00012054,2]
[336399128,1724807446185,-3329.07,0.00012054,2]
[336399130,1724807446196,-10140.89,0.00012054,2]
[336399132,1724807446205,-500.0,0.00012054,2]
[336399134,1724807446215,-560.72,0.00012054,2]
[336399136,1724807446224,-3409.45,0.00012054,2]
[336399139,1724807446234,-255.8,0.00012054,2]
[336399141,1724807446243,-500.0,0.00012054,2]
[336399143,1724807446253,-500.0,0.00012054,2]
[336399144,1724807446262,-500.0,0.00012054,2]
[336399145,1724807446271,-1050.39,0.00012054,2]
[336399146,1724807446281,-500.0,0.00012054,2]
[336399147,1724807446290,-216.01,0.00012054,2]
[336399148,1724807446303,-500.0,0.00012054,2]
[336399149,1724807446313,-500.0,0.00012054,2]
[336399150,1724807446323,-2425.58,0.00012054,2]
[336399151,1724807446333,-816.38,0.00012054,2]
[336399152,1724807446342,-500.0,0.00012054,2]
[336399153,1724807446351,-8759.68,0.00012054,2]
[336399154,1724807446361,-789.67,0.00012054,2]
[336399155,1724807446370,-500.0,0.00012054,2]
[336399156,1724807446384,-505.52,0.00012054,2]
[336399157,1724807446395,-500.0,0.00012054,2]
[336399158,1724807446405,-1383.68,0.00012054,2]
[336399159,1724807446415,-3302.93,0.00012054,2]
[336399160,1724807446424,-5736.41,0.00012054,2]
[336399161,1724807446433,-161.57346621,0.00012054,2]
[336399162,1724807446443,-4130.79,0.00012054,2]
[336399163,1724807446452,-500.0,0.00012054,2]
[336399164,1724807446463,-3015.24,0.00012054,2]
[336399165,1724807446472,-500.0,0.00012054,2]
[336399166,1724807446482,-500.0,0.00012054,2]
[336399167,1724807446491,-500.0,0.00012054,2]
[336399168,1724807446502,-3316.38,0.00012054,2]
[336399169,1724807446512,-1105.84,0.00012054,2]
[336399170,1724807446522,-500.0,0.00012054,2]
[336399171,1724807446532,-6022.8342651,0.00012159,2]
[336399172,1724807446543,-998.20323418,0.00012196,2]
[336399173,1724807446559,-588.29,0.00012328,2]
[336399174,1724807446571,-500.0,0.00012328,2]
[336399175,1724807446581,-500.0,0.00012328,2]
[336399176,1724807446590,-629.41,0.00012328,2]
[336399177,1724807446601,-500.0,0.00012328,2]
[336399178,1724807446611,-500.0,0.00012328,2]
[336399179,1724807446621,-1186.34,0.00012328,2]
[336399180,1724807446631,-500.0,0.00012328,2]
[336399181,1724807446641,-500.0,0.00012328,2]
[336399182,1724807446651,-572.68,0.00012328,2]
[336399183,1724807446661,-202.68,0.00012328,2]
[336399184,1724807446672,-500.0,0.00012328,2]
[336399185,1724807446682,-918.51,0.00012328,2]
[336399186,1724807446691,-500.0,0.00012328,2]
[336399187,1724807446701,-602.67,0.00012328,2]
[336399188,1724807446711,-4786.88,0.00012328,2]
[336399189,1724807446721,-2114.92,0.00012328,2]
[336399190,1724807446731,-865.96,0.00012328,2]
[336399191,1724807446741,-881.57,0.00012328,2]
[336399192,1724807446750,-1850.83,0.00012328,2]
[336399193,1724807446760,-4445.99,0.00012328,2]
[336399194,1724807446771,-3329.07,0.00012328,2]
[336399195,1724807446784,-10140.89,0.00012328,2]
[336399196,1724807446794,-500.0,0.00012328,2]
[336399197,1724807446809,-560.72,0.00012328,2]
[336399198,1724807446819,-3409.45,0.00012328,2]
[336399199,1724807446828,-500.0,0.00012328,2]
[336399200,1724807446838,-500.0,0.00012328,2]
[336399201,1724807446848,-500.0,0.00012328,2]
[336399202,1724807446858,-1050.39,0.00012328,2]
[336399203,1724807446869,-500.0,0.00012328,2]
[336399204,1724807446878,-500.0,0.00012328,2]
[336399205,1724807446888,-500.0,0.00012328,2]
[336399206,1724807446898,-2425.58,0.00012328,2]
[336399207,1724807446907,-816.38,0.00012328,2]
[336399208,1724807446917,-500.0,0.00012328,2]
[336399209,1724807446926,-8759.68,0.00012328,2]
[336399210,1724807446936,-789.67,0.00012328,2]
[336399211,1724807446946,-500.0,0.00012328,2]
[336399212,1724807446956,-1383.68,0.00012328,2]
[336399213,1724807446965,-3302.93,0.00012328,2]
[336399214,1724807446975,-5736.41,0.00012328,2]
[336399215,1724807446984,-4130.79,0.00012328,2]
[336399216,1724807446994,-500.0,0.00012328,2]
[336399217,1724807447003,-3015.24,0.00012328,2]
[336399218,1724807447016,-500.0,0.00012328,2]
[336399219,1724807447026,-500.0,0.00012328,2]
[336399220,1724807447036,-500.0,0.00012328,2]
[336399221,1724807447049,-3316.38,0.00012328,2]
[336399222,1724807447058,-1105.84,0.00012328,2]
[336399223,1724807447068,-500.0,0.00012328,2]
[336399224,1724807447078,-183.69809633,0.00012419,2]
[336399225,1724807447087,-1000.0,0.00012421,2]
[336399226,1724807447096,-6022.8342651,0.00012502,2]
[336399227,1724807447105,-3095.19175936,0.00012516,2]
[336399228,1724807447115,-363.025774,0.00012602,2]
[336399229,1724807447124,-363.025774,0.00012602,2]
[336399230,1724807447134,-500.0,0.00012602,2]
[336399231,1724807447143,-500.0,0.00012602,2]
[336399232,1724807447152,-629.41,0.00012602,2]
[336399233,1724807447162,-500.0,0.00012602,2]
[336399234,1724807447172,-560.65,0.00012602,2]
[336399235,1724807447182,-1186.34,0.00012602,2]
[336399236,1724807447192,-485.05135613,0.00012602,2]
[336399237,1724807447202,-500.0,0.00012602,2]
[336399238,1724807447211,-500.0,0.00012602,2]
[336399239,1724807447220,-918.51,0.00012602,2]
[336399240,1724807447230,-500.0,0.00012602,2]
[336399241,1724807447239,-602.67,0.00012602,2]
[336399242,1724807447249,-4786.88,0.00012602,2]
[336399243,1724807447258,-2114.92,0.00012602,2]
[336399244,1724807447267,-865.96,0.00012602,2]
[336399245,1724807447277,-881.57,0.00012602,2]
[336399246,1724807447287,-1850.83,0.00012602,2]
[336399247,1724807447299,-4445.99,0.00012602,2]
[336399248,1724807447309,-3329.07,0.00012602,2]
[336399249,1724807447318,-10140.89,0.00012602,2]
[336399250,1724807447328,-380.54777595,0.00012602,2]
[336399251,1724807447337,-560.72,0.00012602,2]
[336399252,1724807447348,-3409.45,0.00012602,2]
[336399253,1724807447357,-500.0,0.00012602,2]
[336399254,1724807447367,-500.0,0.00012602,2]
[336399255,1724807447377,-500.0,0.00012602,2]
[336399256,1724807447386,-1050.39,0.00012602,2]
[336399257,1724807447396,-603.77365509,0.00012602,2]
[336399258,1724807447406,-500.0,0.00012602,2]
[336399259,1724807447415,-500.0,0.00012602,2]
[336399260,1724807447425,-2425.58,0.00012602,2]
[336399261,1724807447434,-816.38,0.00012602,2]
[336399262,1724807447444,-500.0,0.00012602,2]
[336399263,1724807447454,-8759.68,0.00012602,2]
[336399264,1724807447463,-789.67,0.00012602,2]
[336399265,1724807447473,-604.63,0.00012602,2]
[336399266,1724807447482,-1383.68,0.00012602,2]
[336399267,1724807447492,-3302.93,0.00012602,2]
[336399268,1724807447501,-5736.41,0.00012602,2]
[336399269,1724807447511,-4130.79,0.00012602,2]
[336399270,1724807447522,-3015.24,0.00012602,2]
[336399271,1724807447532,-276.23,0.00012602,2]
[336399272,1724807447543,-500.0,0.00012602,2]
[336399273,1724807447555,-500.0,0.00012602,2]
[336399274,1724807447566,-3316.38,0.00012602,2]
[336399275,1724807447576,-1105.84,0.00012602,2]
[336399276,1724807447585,-500.0,0.00012602,2]
[336399277,1724807447594,-2284.37692518,0.00012779,3]
[336399278,1724807447604,-42445.819165,0.00012782,2]
[336399279,1724807447614,-21376.23554486,0.00012782,2]
[336399280,1724807447623,-500.0,0.00012876,2]
[336399281,1724807447633,-500.0,0.00012876,2]
[336399282,1724807447643,-629.41,0.00012876,2]
[336399283,1724807447652,-500.0,0.00012876,2]
[336399284,1724807447662,-1186.34,0.00012876,2]
[336399285,1724807447672,-500.0,0.00012876,2]
[336399286,1724807447682,-500.0,0.00012876,2]
[336399287,1724807447691,-918.51,0.00012876,2]
[336399288,1724807447701,-500.0,0.00012876,2]
[336399289,1724807447711,-602.67,0.00012876,2]
[336399290,1724807447721,-4786.88,0.00012876,2]
[336399291,1724807447730,-2114.92,0.00012876,2]
[336399292,1724807447740,-865.96,0.00012876,2]
[336399293,1724807447751,-881.57,0.00012876,2]
[336399294,1724807447760,-1850.83,0.00012876,2]
[336399295,1724807447770,-4445.99,0.00012876,2]
[336399296,1724807447784,-3329.07,0.00012876,2]
[336399297,1724807447794,-10140.89,0.00012876,2]
[336399298,1724807447804,-560.72,0.00012876,2]
[336399299,1724807447814,-3409.45,0.00012876,2]
[336399300,1724807447835,-500.0,0.00012876,2]
[336399301,1724807447844,-421.57,0.00012876,2]
[336399302,1724807447856,-500.0,0.00012876,2]
[336399303,1724807447866,-1050.39,0.00012876,2]
[336399304,1724807447876,-500.0,0.00012876,2]
[336399305,1724807447887,-500.0,0.00012876,2]
[336399306,1724807447897,-2425.58,0.00012876,2]
[336399307,1724807447906,-816.38,0.00012876,2]
[336399308,1724807447916,-500.0,0.00012876,2]
[336399309,1724807447926,-8759.68,0.00012876,2]
[336399310,1724807447936,-789.67,0.00012876,2]
[336399311,1724807447946,-1383.68,0.00012876,2]
[336399312,1724807447955,-3302.93,0.00012876,2]
[336399313,1724807447965,-5736.41,0.00012876,2]
[336399314,1724807447974,-4130.79,0.00012876,2]
[336399315,1724807447985,-3015.24,0.00012876,2]
[336399316,1724807447994,-351.51,0.00012876,2]
[336399317,1724807448004,-500.0,0.00012876,2]
[336399318,1724807448014,-3316.38,0.00012876,2]
[336399319,1724807448024,-1105.84,0.00012876,2]
[336399320,1724807448033,-500.0,0.00012876,2]
[336399321,1724807448043,-679.804899,0.00012877,2]
[336399322,1724807448056,-5619.26032472,0.000129,2]
[336399323,1724807448065,-274.76806258,0.00012934,2]
[336399324,1724807448075,-811.78467002,0.00012934,2]
[336399325,1724807448084,-154.74467129,0.00012971,2]
[336399326,1724807448095,-288.5284708,0.00012985,2]
[336399327,1724807448104,-493.73689206,0.00012985,2]
[336399328,1724807448113,-301.79866319,0.00012999,2]
[336399329,1724807448123,-150.112233,0.00013,2]
[336399330,1724807448132,-150.112233,0.00013,2]
[336399331,1724807448331,-150.112233,0.00013,2]
[336399332,1724807448341,-150.112233,0.00013,2]
[336399333,1724807448352,-150.112233,0.00013,2]
[336399334,1724807448361,-150.112233,0.00013,2]
[336399335,1724807448370,-863.22054056,0.00013,2]
[336399336,1724807448380,-337.0980992,0.00013,2]
[336399337,1724807448389,-600.0,0.00013042,2]
[336399338,1724807448398,-7019.02837854,0.0001305,2]
[336399339,1724807448407,-600.0,0.00013095,2]
[336399340,1724807448416,-150.112233,0.000131,2]
[336399341,1724807448426,-150.112233,0.000131,2]
[336399342,1724807448435,-150.112233,0.000131,2]
[336399343,1724807448444,-150.112233,0.000131,2]
[336399344,1724807448453,-150.112233,0.000131,2]
[336399345,1724807448463,-150.112233,0.000131,2]
[336399346,1724807448473,-150.0,0.00013115,2]
[336399347,1724807448482,-150.0,0.00013132,2]
[336399348,1724807448492,-522.0,0.00013132,2]
[336399349,1724807448502,-363.025774,0.0001315,2]
[336399350,1724807448511,-363.025774,0.0001315,2]
[336399351,1724807448521,-500.0,0.0001315,2]
[336399352,1724807448530,-500.0,0.0001315,2]
[336399353,1724807448539,-629.41,0.0001315,2]
[336399354,1724807448550,-500.0,0.0001315,2]
[336399355,1724807448559,-1186.34,0.0001315,2]
[336399356,1724807448569,-500.0,0.0001315,2]
[336399357,1724807448577,-500.0,0.0001315,2]
[336399358,1724807448586,-918.51,0.0001315,2]
[336399359,1724807448596,-500.0,0.0001315,2]
[336399360,1724807448605,-602.67,0.0001315,2]
[336399361,1724807448615,-4786.88,0.0001315,2]
[336399362,1724807448624,-2114.92,0.0001315,2]
[336399363,1724807448633,-865.96,0.0001315,2]
[336399364,1724807448643,-881.57,0.0001315,2]
[336399365,1724807448653,-1850.83,0.0001315,2]
[336399366,1724807448662,-4445.99,0.0001315,2]
[336399367,1724807448671,-3329.07,0.0001315,2]
[336399368,1724807448681,-10140.89,0.0001315,2]
[336399369,1724807448690,-560.72,0.0001315,2]
[336399370,1724807448700,-3409.45,0.0001315,2]
[336399371,1724807448709,-500.0,0.0001315,2]
[336399372,1724807448719,-612.74,0.0001315,2]
[336399373,1724807448729,-1050.39,0.0001315,2]
[336399374,1724807448740,-500.0,0.0001315,2]
[336399375,1724807448749,-500.0,0.0001315,2]
[336399376,1724807448758,-2425.58,0.0001315,2]
[336399377,1724807448768,-816.38,0.0001315,2]
[336399378,1724807448781,-500.0,0.0001315,2]
[336399379,1724807448790,-8759.68,0.0001315,2]
[336399380,1724807448803,-789.67,0.0001315,2]
[336399381,1724807448818,-1383.68,0.0001315,2]
[336399382,1724807448828,-3302.93,0.0001315,2]
[336399383,1724807448839,-5736.41,0.0001315,2]
[336399384,1724807448849,-4130.79,0.0001315,2]
[336399385,1724807448861,-3015.24,0.0001315,2]
[336399386,1724807448870,-500.0,0.0001315,2]
[336399387,1724807448880,-3316.38,0.0001315,2]
[336399388,1724807448890,-1105.84,0.0001315,2]
[336399389,1724807448900,-500.0,0.0001315,2]
[336399390,1724807448909,-587.0,0.00013188,2]
[336399391,1724807448919,-600.0,0.00013237,2]
[336399392,1724807448928,-600.0,0.00013267,2]
[336399393,1724807448939,-600.0,0.00013315,2]
[336399394,1724807448948,-1500.0,0.00013319,2]
[336399395,1724807448959,-28731.15316011,0.00013324,2]
[336399396,1724807448969,-330.283467,0.000134,4]
[336399397,1724807448980,-500.0,0.00013424,2]
[336399398,1724807448991,-367.1,0.00013424,2]
[336399399,1724807449001,-629.41,0.00013424,2]
[336399400,1724807449011,-301.26,0.00013424,2]
[336399401,1724807449021,-1186.34,0.00013424,2]
[336399402,1724807449032,-500.0,0.00013424,2]
[336399403,1724807449042,-918.51,0.00013424,2]
[336399404,1724807449054,-500.0,0.00013424,2]
[336399405,1724807449064,-602.67,0.00013424,2]
[336399406,1724807449074,-4786.88,0.00013424,2]
[336399407,1724807449083,-2114.92,0.00013424,2]
[336399408,1724807449093,-865.96,0.00013424,2]
[336399409,1724807449103,-881.57,0.00013424,2]
[336399410,1724807449113,-1850.83,0.00013424,2]
[336399411,1724807449122,-4445.99,0.00013424,2]
[336399412,1724807449133,-3329.07,0.00013424,2]
[336399413,1724807449143,-10140.89,0.00013424,2]
[336399414,1724807449153,-560.72,0.00013424,2]
[336399415,1724807449162,-3409.45,0.00013424,2]
[336399416,1724807449172,-500.0,0.00013424,2]
[336399417,1724807449182,-1050.39,0.00013424,2]
[336399418,1724807449192,-500.0,0.00013424,2]
[336399419,1724807449202,-500.0,0.00013424,2]
[336399420,1724807449211,-2425.58,0.00013424,2]
[336399421,1724807449222,-816.38,0.00013424,2]
[336399422,1724807449231,-367.14,0.00013424,2]
[336399423,1724807449242,-8759.68,0.00013424,2]
[336399424,1724807449251,-789.67,0.00013424,2]
[336399425,1724807449261,-1383.68,0.00013424,2]
[336399426,1724807449271,-3302.93,0.00013424,2]
[336399427,1724807449281,-5736.41,0.00013424,2]
[336399428,1724807449292,-4130.79,0.00013424,2]
[336399429,1724807449303,-3015.24,0.00013424,2]
[336399430,1724807449313,-500.0,0.00013424,2]
[336399431,1724807449323,-3316.38,0.00013424,2]
[336399432,1724807449333,-1105.84,0.00013424,2]
[336399433,1724807449344,-500.0,0.00013424,2]
[336399434,1724807449354,-600.0,0.00013454,2]
[336399435,1724807449364,-600.0,0.00013483,2]
[336399436,1724807449373,-5681.15826227,0.00013492,2]
[336399437,1724807449383,-1767.84535613,0.00013497,2]
[336399438,1724807449393,-180.94079709,0.00013497,2]
[336399439,1724807449405,-199.6892331,0.00013497,2]
[336399440,1724807449415,-2714.82142664,0.00013497,2]
[336399441,1724807449424,-544.46212792,0.00013497,2]
[336399442,1724807449434,-746.16081512,0.00013553,2]
[336399443,1724807449444,-600.0,0.00013593,2]
[336399444,1724807449453,-210.39215594,0.00013596,2]
[336399445,1724807449463,-343.02009074,0.00013596,2]
[336399446,1724807449473,-309.33497918,0.00013596,2]
[336399447,1724807449483,-404.68183909,0.00013596,2]
[336399448,1724807449494,-169.671416,0.00013596,2]
[336399449,1724807449503,-154.89913263,0.00013596,2]
[336399450,1724807449513,-309.3041767,0.00013596,2]
[336399451,1724807449523,-160.57519191,0.00013596,2]
[336399452,1724807449535,-2229.31322661,0.00013596,2]
[336399453,1724807449547,-160.06364098,0.00013596,2]
[336399454,1724807449558,-154.77654264,0.00013596,2]
[336399455,1724807449567,-155.00700344,0.00013596,2]
[336399456,1724807449577,-899.54550214,0.00013596,2]
[336399457,1724807449588,-154.69833824,0.00013596,2]